[Event "Titled Tuesday Blitz August 15 Late 2023"]
[White "Krishnan, Varun"]
[Black "Mikhailov, Viacheslav"]
[WhiteFideId "5054508"]
[BlackFideId "4187369"]
[WhiteElo "2613"]
[BlackElo "2745"]
[Result "0-1"]
[Round "11"]
[TimeControl "180+1"]
[Date "2023.08.15"]
[WhiteClock "0:00:04"]
[BlackClock "0:00:41"]
[Board "16"]

1. d4 {[%clk 0:03:00]}  Nf6 {[%clk 0:02:59]} 2. c4 {[%clk 0:03:00]}  g6 {[%clk 0:02:59]} 3. Nc3 {[%clk 0:03:00]}  Bg7 {[%clk 0:03:00]} 4. e4 {[%clk 0:02:59]}  O-O {[%clk 0:03:00]} 5. Be2 {[%clk 0:02:55]}  d6 {[%clk 0:03:00]} 6. Be3 {[%clk 0:02:54]}  e5 {[%clk 0:03:00]} 7. d5 {[%clk 0:02:53]}  Nbd7 {[%clk 0:02:59]} 8. Qd2 {[%clk 0:02:51]}  Nc5 {[%clk 0:02:59]} 9. f3 {[%clk 0:02:49]}  a5 {[%clk 0:02:59]} 10. g4 {[%clk 0:02:46]}  b6 {[%clk 0:02:52]} 11. h4 {[%clk 0:02:37]}  h5 {[%clk 0:02:50]} 12. Bg5 {[%clk 0:02:23]}  Qe8 {[%clk 0:02:36]} 13. Bxf6 {[%clk 0:02:03]}  Bxf6 {[%clk 0:02:37]} 14. gxh5 {[%clk 0:02:03]}  Qe7 {[%clk 0:02:37]} 15. Nh3 {[%clk 0:01:51]}  Bxh3 {[%clk 0:02:26]} 16. Rxh3 {[%clk 0:01:49]}  Bxh4+ {[%clk 0:02:26]} 17. Kd1 {[%clk 0:01:43]}  Bg5 {[%clk 0:02:14]} 18. Qe1 {[%clk 0:01:42]}  Kg7 {[%clk 0:02:15]} 19. Kc2 {[%clk 0:01:36]}  Rh8 {[%clk 0:02:13]} 20. Qg3 {[%clk 0:01:28]}  Bf4 {[%clk 0:02:11]} 21. Qg4 {[%clk 0:01:26]}  Qg5 {[%clk 0:02:07]} 22. Qxg5 {[%clk 0:01:17]}  Bxg5 {[%clk 0:02:08]} 23. Rah1 {[%clk 0:01:07]}  Rxh5 {[%clk 0:02:02]} 24. Rxh5 {[%clk 0:01:06]}  gxh5 {[%clk 0:02:03]} 25. Rxh5 {[%clk 0:01:06]}  Bf4 {[%clk 0:01:56]} 26. Nb5 {[%clk 0:01:03]}  Na6 {[%clk 0:01:50]} 27. Bf1 {[%clk 0:00:59]}  Kf6 {[%clk 0:01:47]} 28. a3 {[%clk 0:00:53]}  Rg8 {[%clk 0:01:45]} 29. Kd1 {[%clk 0:00:44]}  Rg1 {[%clk 0:01:38]} 30. Ke2 {[%clk 0:00:44]}  Bc1 {[%clk 0:01:36]} 31. b3 {[%clk 0:00:42]}  Ke7 {[%clk 0:01:24]} 32. Kf2 {[%clk 0:00:26]}  Rg8 {[%clk 0:01:23]} 33. Bh3 {[%clk 0:00:25]}  Nc5 {[%clk 0:01:13]} 34. Rh7 {[%clk 0:00:20]}  Nd3+ {[%clk 0:01:09]} 35. Ke2 {[%clk 0:00:20]}  Nf4+ {[%clk 0:01:08]} 36. Kd1 {[%clk 0:00:21]}  Rg1+ {[%clk 0:00:51]} 37. Kc2 {[%clk 0:00:20]}  Be3 {[%clk 0:00:44]} 38. Nxc7 {[%clk 0:00:15]}  Rc1+ {[%clk 0:00:41]} 39. Kb2 {[%clk 0:00:14]}  Nd3+ {[%clk 0:00:41]} 40. Ka2 {[%clk 0:00:14]}  Bd4 {[%clk 0:00:41]} 41. b4 {[%clk 0:00:04]}  a4 {[%clk 0:00:41]} 0-1


[Site "https://www.chess.com"]

[Event "Titled Tuesday Blitz August 15 Late 2023"]
[White "Papp, Levente"]
[Black "Zhigalko, Sergei"]
[WhiteFideId "751243"]
[BlackFideId "13502956"]
[WhiteElo "2697"]
[BlackElo "2918"]
[Result "0-1"]
[Round "11"]
[TimeControl "180+1"]
[Date "2023.08.15"]
[WhiteClock "0:00:00"]
[BlackClock "0:00:17"]
[Board "17"]

1. e4 {[%clk 0:03:00]}  c5 {[%clk 0:03:00]} 2. Nf3 {[%clk 0:02:59]}  Nc6 {[%clk 0:03:01]} 3. Nc3 {[%clk 0:02:59]}  Nf6 {[%clk 0:03:01]} 4. Bb5 {[%clk 0:02:58]}  Qc7 {[%clk 0:03:01]} 5. d3 {[%clk 0:02:47]}  Nd4 {[%clk 0:03:01]} 6. Ba4 {[%clk 0:02:42]}  e6 {[%clk 0:02:38]} 7. Nxd4 {[%clk 0:02:38]}  cxd4 {[%clk 0:02:39]} 8. Ne2 {[%clk 0:02:38]}  Bc5 {[%clk 0:02:35]} 9. c3 {[%clk 0:02:25]}  dxc3 {[%clk 0:02:23]} 10. bxc3 {[%clk 0:02:25]}  O-O {[%clk 0:02:23]} 11. O-O {[%clk 0:02:07]}  d6 {[%clk 0:02:12]} 12. d4 {[%clk 0:01:59]}  Bb6 {[%clk 0:02:12]} 13. Bc2 {[%clk 0:01:53]}  Bd7 {[%clk 0:02:11]} 14. f4 {[%clk 0:01:46]}  Bb5 {[%clk 0:02:09]} 15. Rf3 {[%clk 0:01:42]}  Rac8 {[%clk 0:02:00]} 16. e5 {[%clk 0:01:02]}  dxe5 {[%clk 0:01:58]} 17. fxe5 {[%clk 0:01:00]}  Qxe5 {[%clk 0:01:59]} 18. Be3 {[%clk 0:00:46]}  Qc7 {[%clk 0:01:04]} 19. Rxf6 {[%clk 0:00:31]}  gxf6 {[%clk 0:01:01]} 20. Nf4 {[%clk 0:00:25]}  f5 {[%clk 0:00:54]} 21. Qh5 {[%clk 0:00:20]}  Qe7 {[%clk 0:00:49]} 22. Qh6 {[%clk 0:00:17]}  Rxc3 {[%clk 0:00:37]} 23. Nh5 {[%clk 0:00:14]}  f6 {[%clk 0:00:37]} 24. Bb3 {[%clk 0:00:13]}  Bc4 {[%clk 0:00:24]} 25. Ba4 {[%clk 0:00:07]}  e5 {[%clk 0:00:21]} 26. Re1 {[%clk 0:00:05]}  Rxe3 {[%clk 0:00:19]} 27. Rxe3 {[%clk 0:00:04]}  Bxd4 {[%clk 0:00:19]} 28. h3 {[%clk 0:00:04]}  f4 {[%clk 0:00:17]} 29. Bb3 {[%clk 0:00:03]}  Bxe3+ {[%clk 0:00:17]} 30. Kh2 {[%clk 0:00:03]}  Bxb3 {[%clk 0:00:18]} 31. axb3 {[%clk 0:00:00]}  Qf7 {[%clk 0:00:17]} 0-1


[Site "https://www.chess.com"]

[Event "Titled Tuesday Blitz August 15 Late 2023"]
[White "Gubajdullin, Alexei"]
[Black "Cordova, Emilio"]
[WhiteFideId "4141202"]
[BlackFideId "3801497"]
[WhiteElo "2695"]
[BlackElo "2857"]
[Result "0-1"]
[Round "11"]
[TimeControl "180+1"]
[Date "2023.08.15"]
[WhiteClock "0:00:09"]
[BlackClock "0:00:18"]
[Board "18"]

1. d4 {[%clk 0:03:00]}  e6 {[%clk 0:02:56]} 2. Nf3 {[%clk 0:03:00]}  b6 {[%clk 0:02:55]} 3. Bf4 {[%clk 0:03:00]}  Bb7 {[%clk 0:02:56]} 4. e3 {[%clk 0:03:00]}  Nf6 {[%clk 0:02:55]} 5. Be2 {[%clk 0:03:00]}  Nc6 {[%clk 0:02:52]} 6. h3 {[%clk 0:03:00]}  Ne7 {[%clk 0:02:52]} 7. a4 {[%clk 0:02:52]}  Ng6 {[%clk 0:02:52]} 8. Bh2 {[%clk 0:02:51]}  a6 {[%clk 0:02:52]} 9. Nbd2 {[%clk 0:02:44]}  Be7 {[%clk 0:02:51]} 10. c3 {[%clk 0:02:39]}  O-O {[%clk 0:02:51]} 11. O-O {[%clk 0:02:36]}  c5 {[%clk 0:02:50]} 12. Nc4 {[%clk 0:02:26]}  Ne4 {[%clk 0:02:32]} 13. a5 {[%clk 0:02:24]}  b5 {[%clk 0:02:22]} 14. Nb6 {[%clk 0:02:24]}  Ra7 {[%clk 0:02:22]} 15. d5 {[%clk 0:02:23]}  d6 {[%clk 0:02:18]} 16. c4 {[%clk 0:02:06]}  exd5 {[%clk 0:01:57]} 17. Nxd5 {[%clk 0:02:03]}  b4 {[%clk 0:01:47]} 18. Nxe7+ {[%clk 0:01:54]}  Qxe7 {[%clk 0:01:45]} 19. Qc2 {[%clk 0:01:53]}  f5 {[%clk 0:01:40]} 20. Rfd1 {[%clk 0:01:44]}  Rf6 {[%clk 0:01:40]} 21. Bf1 {[%clk 0:01:36]}  Bc6 {[%clk 0:01:38]} 22. Nd2 {[%clk 0:01:33]}  Nh4 {[%clk 0:01:32]} 23. Nxe4 {[%clk 0:01:23]}  Bxe4 {[%clk 0:01:30]} 24. Qd2 {[%clk 0:01:22]}  Rg6 {[%clk 0:01:21]} 25. Bg3 {[%clk 0:01:22]}  Bf3 {[%clk 0:01:18]} 26. Re1 {[%clk 0:01:17]}  Ba8 {[%clk 0:01:00]} 27. Kh2 {[%clk 0:01:02]}  Rd7 {[%clk 0:00:59]} 28. Rad1 {[%clk 0:00:35]}  Bc6 {[%clk 0:00:58]} 29. b3 {[%clk 0:00:33]}  h6 {[%clk 0:00:47]} 30. Qe2 {[%clk 0:00:32]}  Rxg3 {[%clk 0:00:45]} 31. fxg3 {[%clk 0:00:31]}  Ng6 {[%clk 0:00:45]} 32. Qh5 {[%clk 0:00:31]}  Qe6 {[%clk 0:00:36]} 33. Bd3 {[%clk 0:00:30]}  Rf7 {[%clk 0:00:36]} 34. Rf1 {[%clk 0:00:29]}  Ne7 {[%clk 0:00:35]} 35. Rde1 {[%clk 0:00:25]}  Kh7 {[%clk 0:00:32]} 36. Rf4 {[%clk 0:00:24]}  g6 {[%clk 0:00:32]} 37. Qe2 {[%clk 0:00:23]}  g5 {[%clk 0:00:29]} 38. Rf2 {[%clk 0:00:23]}  Kg7 {[%clk 0:00:28]} 39. Ref1 {[%clk 0:00:23]}  Qe5 {[%clk 0:00:27]} 40. e4 {[%clk 0:00:18]}  f4 {[%clk 0:00:25]} 41. gxf4 {[%clk 0:00:18]}  gxf4 {[%clk 0:00:25]} 42. Qg4+ {[%clk 0:00:18]}  Ng6 {[%clk 0:00:26]} 43. Kh1 {[%clk 0:00:15]}  h5 {[%clk 0:00:26]} 44. Qf3 {[%clk 0:00:14]}  h4 {[%clk 0:00:26]} 45. Qg4 {[%clk 0:00:13]}  Bd7 {[%clk 0:00:27]} 46. Qf3 {[%clk 0:00:12]}  Qg5 {[%clk 0:00:27]} 47. e5 {[%clk 0:00:10]}  Nxe5 {[%clk 0:00:27]} 48. Qe4 {[%clk 0:00:10]}  Bf5 {[%clk 0:00:26]} 49. Qxf4 {[%clk 0:00:07]}  Qxf4 {[%clk 0:00:27]} 50. Rxf4 {[%clk 0:00:07]}  Bxd3 {[%clk 0:00:28]} 51. Rxf7+ {[%clk 0:00:06]}  Nxf7 {[%clk 0:00:29]} 52. Rf4 {[%clk 0:00:06]}  Bc2 {[%clk 0:00:28]} 53. Rg4+ {[%clk 0:00:04]}  Kf8 {[%clk 0:00:28]} 54. Rxh4 {[%clk 0:00:03]}  Bxb3 {[%clk 0:00:28]} 55. Re4 {[%clk 0:00:02]}  Bc2 {[%clk 0:00:28]} 56. Re2 {[%clk 0:00:01]}  b3 {[%clk 0:00:29]} 57. Re1 {[%clk 0:00:01]}  b2 {[%clk 0:00:29]} 58. h4 {[%clk 0:00:01]}  b1=Q {[%clk 0:00:29]} 59. Rxb1 {[%clk 0:00:01]}  Bxb1 {[%clk 0:00:30]} 60. h5 {[%clk 0:00:01]}  Bd3 {[%clk 0:00:30]} 61. h6 {[%clk 0:00:02]}  Nxh6 {[%clk 0:00:29]} 62. g4 {[%clk 0:00:01]}  Bxc4 {[%clk 0:00:29]} 63. g5 {[%clk 0:00:02]}  Nf5 {[%clk 0:00:28]} 64. g6 {[%clk 0:00:02]}  Bd5+ {[%clk 0:00:25]} 65. Kg1 {[%clk 0:00:02]}  Bf3 {[%clk 0:00:24]} 66. g7+ {[%clk 0:00:03]}  Kxg7 {[%clk 0:00:24]} 67. Kf2 {[%clk 0:00:04]}  Bg4 {[%clk 0:00:23]} 68. Ke1 {[%clk 0:00:03]}  d5 {[%clk 0:00:23]} 69. Kd2 {[%clk 0:00:04]}  d4 {[%clk 0:00:24]} 70. Kc2 {[%clk 0:00:05]}  c4 {[%clk 0:00:24]} 71. Kd2 {[%clk 0:00:06]}  Kf6 {[%clk 0:00:23]} 72. Kc2 {[%clk 0:00:06]}  Ke5 {[%clk 0:00:24]} 73. Kd2 {[%clk 0:00:07]}  Ke4 {[%clk 0:00:23]} 74. Kc2 {[%clk 0:00:07]}  Ke3 {[%clk 0:00:24]} 75. Kc1 {[%clk 0:00:07]}  Kd3 {[%clk 0:00:23]} 76. Kb2 {[%clk 0:00:07]}  Kd2 {[%clk 0:00:24]} 77. Ka3 {[%clk 0:00:06]}  c3 {[%clk 0:00:24]} 78. Kb4 {[%clk 0:00:07]}  c2 {[%clk 0:00:23]} 79. Kc5 {[%clk 0:00:08]}  c1=Q+ {[%clk 0:00:22]} 80. Kb6 {[%clk 0:00:09]}  Nd6 {[%clk 0:00:19]} 81. Ka7 {[%clk 0:00:09]}  Qc7+ {[%clk 0:00:18]} 82. Ka8 {[%clk 0:00:09]}  Qb7# {[%clk 0:00:18]} 0-1


[Site "https://www.chess.com"]

[Event "Titled Tuesday Blitz August 15 Late 2023"]
[White "Rastbod, Ali"]
[Black "Klukin, Kirill"]
[WhiteFideId "12567477"]
[BlackFideId "24199273"]
[WhiteElo "2687"]
[BlackElo "2826"]
[Result "0-1"]
[Round "11"]
[TimeControl "180+1"]
[Date "2023.08.15"]
[WhiteClock "0:00:00"]
[BlackClock "0:00:07"]
[Board "19"]

1. d4 {[%clk 0:02:52]}  Nf6 {[%clk 0:02:59]} 2. Nf3 {[%clk 0:02:52]}  e6 {[%clk 0:02:59]} 3. c3 {[%clk 0:02:51]}  b6 {[%clk 0:02:58]} 4. Bf4 {[%clk 0:02:49]}  Bb7 {[%clk 0:02:58]} 5. e3 {[%clk 0:02:49]}  d5 {[%clk 0:02:59]} 6. Bb5+ {[%clk 0:02:43]}  c6 {[%clk 0:02:57]} 7. Bd3 {[%clk 0:02:44]}  Bd6 {[%clk 0:02:57]} 8. Nbd2 {[%clk 0:02:42]}  Qc7 {[%clk 0:02:56]} 9. Bxd6 {[%clk 0:02:33]}  Qxd6 {[%clk 0:02:57]} 10. Ne5 {[%clk 0:02:33]}  Nbd7 {[%clk 0:02:55]} 11. f4 {[%clk 0:02:33]}  c5 {[%clk 0:02:55]} 12. Qf3 {[%clk 0:02:30]}  a6 {[%clk 0:02:35]} 13. a4 {[%clk 0:02:25]}  Qc7 {[%clk 0:02:12]} 14. g4 {[%clk 0:02:21]}  Nxe5 {[%clk 0:02:07]} 15. fxe5 {[%clk 0:02:20]}  Nd7 {[%clk 0:02:08]} 16. O-O {[%clk 0:02:16]}  f6 {[%clk 0:02:03]} 17. exf6 {[%clk 0:02:07]}  gxf6 {[%clk 0:02:02]} 18. g5 {[%clk 0:01:43]}  O-O-O {[%clk 0:00:57]} 19. gxf6 {[%clk 0:01:41]}  Rdf8 {[%clk 0:00:57]} 20. f7 {[%clk 0:01:31]}  e5 {[%clk 0:00:57]} 21. Bf5 {[%clk 0:01:30]}  Rxf7 {[%clk 0:00:55]} 22. Qh3 {[%clk 0:01:26]}  Kb8 {[%clk 0:00:54]} 23. Bxd7 {[%clk 0:01:19]}  Rxd7 {[%clk 0:00:54]} 24. Nf3 {[%clk 0:01:13]}  Rg7+ {[%clk 0:00:49]} 25. Kh1 {[%clk 0:01:09]}  Bc8 {[%clk 0:00:49]} 26. Qh4 {[%clk 0:01:05]}  Bf5 {[%clk 0:00:42]} 27. Nd2 {[%clk 0:00:57]}  Bd3 {[%clk 0:00:37]} 28. Rg1 {[%clk 0:00:50]}  Rhg8 {[%clk 0:00:36]} 29. Qf6 {[%clk 0:00:44]}  exd4 {[%clk 0:00:29]} 30. Rxg7 {[%clk 0:00:29]}  Rxg7 {[%clk 0:00:24]} 31. exd4 {[%clk 0:00:29]}  c4 {[%clk 0:00:23]} 32. a5 {[%clk 0:00:22]}  Rg6 {[%clk 0:00:20]} 33. Qf8+ {[%clk 0:00:17]}  Qc8 {[%clk 0:00:19]} 34. Qf4+ {[%clk 0:00:13]}  Qc7 {[%clk 0:00:19]} 35. Qf8+ {[%clk 0:00:12]}  Kb7 {[%clk 0:00:19]} 36. Re1 {[%clk 0:00:10]}  Rg7 {[%clk 0:00:09]} 37. axb6 {[%clk 0:00:06]}  Qf7 {[%clk 0:00:09]} 38. Qd6 {[%clk 0:00:04]}  Be4+ {[%clk 0:00:09]} 39. Rxe4 {[%clk 0:00:03]}  dxe4 {[%clk 0:00:10]} 40. d5 {[%clk 0:00:00]}  Qg6 {[%clk 0:00:07]} 0-1


[Site "https://www.chess.com"]

[Event "Titled Tuesday Blitz August 15 Late 2023"]
[White "Valenzuela Gomez, Fernando"]
[Black "Mekhitarian, Krikor Sevag"]
[WhiteFideId "3409392"]
[BlackFideId "2107660"]
[WhiteElo "2642"]
[BlackElo "2797"]
[Result "0-1"]
[Round "11"]
[TimeControl "180+1"]
[Date "2023.08.15"]
[WhiteClock "0:00:00"]
[BlackClock "0:00:06"]
[Board "20"]

1. Nf3 {[%clk 0:02:56]}  d5 {[%clk 0:02:55]} 2. g3 {[%clk 0:02:48]}  Nc6 {[%clk 0:02:54]} 3. d4 {[%clk 0:02:46]}  Bf5 {[%clk 0:02:54]} 4. Bg2 {[%clk 0:02:45]}  Nb4 {[%clk 0:02:54]} 5. Na3 {[%clk 0:02:46]}  e6 {[%clk 0:02:53]} 6. O-O {[%clk 0:02:46]}  Be7 {[%clk 0:02:53]} 7. Ne5 {[%clk 0:02:44]}  Nf6 {[%clk 0:02:45]} 8. c3 {[%clk 0:02:43]}  Nc6 {[%clk 0:02:45]} 9. Qa4 {[%clk 0:02:39]}  O-O {[%clk 0:02:45]} 10. Nxc6 {[%clk 0:02:38]}  bxc6 {[%clk 0:02:46]} 11. Qxc6 {[%clk 0:02:38]}  Rb8 {[%clk 0:02:34]} 12. Qa4 {[%clk 0:02:11]}  h5 {[%clk 0:02:23]} 13. Nb1 {[%clk 0:02:04]}  h4 {[%clk 0:02:23]} 14. Nd2 {[%clk 0:02:04]}  h3 {[%clk 0:02:23]} 15. Bh1 {[%clk 0:02:04]}  c5 {[%clk 0:02:22]} 16. Nf3 {[%clk 0:02:03]}  Ne4 {[%clk 0:02:19]} 17. Ne5 {[%clk 0:01:57]}  Bd6 {[%clk 0:00:54]} 18. f3 {[%clk 0:01:48]}  Nf6 {[%clk 0:00:47]} 19. Qd1 {[%clk 0:01:34]}  Qc7 {[%clk 0:00:44]} 20. f4 {[%clk 0:00:55]}  Ne4 {[%clk 0:00:44]} 21. e3 {[%clk 0:00:52]}  Rfc8 {[%clk 0:00:43]} 22. Bf3 {[%clk 0:00:50]}  f6 {[%clk 0:00:42]} 23. Nd3 {[%clk 0:00:46]}  a5 {[%clk 0:00:39]} 24. Nf2 {[%clk 0:00:43]}  cxd4 {[%clk 0:00:32]} 25. exd4 {[%clk 0:00:40]}  Qc6 {[%clk 0:00:30]} 26. Nd3 {[%clk 0:00:33]}  a4 {[%clk 0:00:29]} 27. g4 {[%clk 0:00:32]}  Bh7 {[%clk 0:00:27]} 28. f5 {[%clk 0:00:32]}  exf5 {[%clk 0:00:20]} 29. gxf5 {[%clk 0:00:33]}  Bxf5 {[%clk 0:00:20]} 30. Bg4 {[%clk 0:00:34]}  Bg6 {[%clk 0:00:16]} 31. Be6+ {[%clk 0:00:32]}  Bf7 {[%clk 0:00:14]} 32. Bxf7+ {[%clk 0:00:29]}  Kxf7 {[%clk 0:00:14]} 33. Qh5+ {[%clk 0:00:29]}  Kg8 {[%clk 0:00:15]} 34. Qxh3 {[%clk 0:00:28]}  Re8 {[%clk 0:00:15]} 35. Bf4 {[%clk 0:00:25]}  a3 {[%clk 0:00:10]} 36. Bxd6 {[%clk 0:00:20]}  Qxd6 {[%clk 0:00:11]} 37. bxa3 {[%clk 0:00:17]}  Nxc3 {[%clk 0:00:12]} 38. Rac1 {[%clk 0:00:16]}  Ne2+ {[%clk 0:00:12]} 39. Kh1 {[%clk 0:00:17]}  Nxc1 {[%clk 0:00:12]} 40. Rxc1 {[%clk 0:00:18]}  Qxa3 {[%clk 0:00:12]} 41. Rg1 {[%clk 0:00:17]}  Qe7 {[%clk 0:00:10]} 42. Nc5 {[%clk 0:00:17]}  Qf7 {[%clk 0:00:10]} 43. Qg4 {[%clk 0:00:16]}  Rb2 {[%clk 0:00:10]} 44. Nd7 {[%clk 0:00:13]}  Ree2 {[%clk 0:00:09]} 45. Nxf6+ {[%clk 0:00:07]}  Qxf6 {[%clk 0:00:08]} 46. Qc8+ {[%clk 0:00:07]}  Qf8 {[%clk 0:00:08]} 47. Rxg7+ {[%clk 0:00:07]}  Kxg7 {[%clk 0:00:08]} 48. Qg4+ {[%clk 0:00:08]}  Kh7 {[%clk 0:00:07]} 49. Qh5+ {[%clk 0:00:08]}  Qh6 {[%clk 0:00:06]} 50. Qf5+ {[%clk 0:00:08]}  Kg7 {[%clk 0:00:05]} 51. Qg4+ {[%clk 0:00:09]}  Qg6 {[%clk 0:00:06]} 52. Qd7+ {[%clk 0:00:09]}  Qf7 {[%clk 0:00:05]} 53. Qg4+ {[%clk 0:00:10]}  Kf8 {[%clk 0:00:06]} 54. Qc8+ {[%clk 0:00:10]}  Re8 {[%clk 0:00:06]} 55. Qc5+ {[%clk 0:00:07]}  Kg8 {[%clk 0:00:06]} 56. Qf8+ {[%clk 0:00:00]}  Rxf8 {[%clk 0:00:06]} 0-1


[Site "https://www.chess.com"]

[Event "Titled Tuesday Blitz August 15 Late 2023"]
[White "Yanchenko, Roman"]
[Black "Isajevsky, Anton"]
[WhiteFideId "4137329"]
[BlackFideId "4142500"]
[WhiteElo "2782"]
[BlackElo "2605"]
[Result "1-0"]
[Round "11"]
[TimeControl "180+1"]
[Date "2023.08.15"]
[WhiteClock "0:00:22"]
[BlackClock "0:00:00"]
[Board "22"]

1. d4 {[%clk 0:03:00]}  d5 {[%clk 0:02:59]} 2. Nf3 {[%clk 0:03:01]}  Nf6 {[%clk 0:02:59]} 3. c4 {[%clk 0:03:01]}  e6 {[%clk 0:03:00]} 4. Nc3 {[%clk 0:03:02]}  Be7 {[%clk 0:02:51]} 5. Bg5 {[%clk 0:03:02]}  h6 {[%clk 0:02:48]} 6. Bh4 {[%clk 0:03:02]}  O-O {[%clk 0:02:48]} 7. e3 {[%clk 0:03:02]}  b6 {[%clk 0:02:48]} 8. cxd5 {[%clk 0:03:00]}  Nxd5 {[%clk 0:02:48]} 9. Bxe7 {[%clk 0:03:00]}  Qxe7 {[%clk 0:02:48]} 10. Rc1 {[%clk 0:02:59]}  Nxc3 {[%clk 0:01:47]} 11. Rxc3 {[%clk 0:02:59]}  Bb7 {[%clk 0:01:45]} 12. Be2 {[%clk 0:02:59]}  Rc8 {[%clk 0:01:44]} 13. Qc2 {[%clk 0:02:58]}  c5 {[%clk 0:01:10]} 14. dxc5 {[%clk 0:02:58]}  Rxc5 {[%clk 0:01:10]} 15. Rxc5 {[%clk 0:02:58]}  Qxc5 {[%clk 0:01:10]} 16. Qxc5 {[%clk 0:02:57]}  bxc5 {[%clk 0:01:11]} 17. O-O {[%clk 0:02:57]}  Nd7 {[%clk 0:01:08]} 18. Rc1 {[%clk 0:02:54]}  Rc8 {[%clk 0:01:06]} 19. Nd2 {[%clk 0:02:53]}  Kf8 {[%clk 0:01:05]} 20. Bb5 {[%clk 0:02:50]}  Bc6 {[%clk 0:00:46]} 21. Ba6 {[%clk 0:02:45]}  Rc7 {[%clk 0:00:39]} 22. Nb3 {[%clk 0:02:40]}  Bd5 {[%clk 0:00:38]} 23. Na5 {[%clk 0:02:37]}  Ke7 {[%clk 0:00:28]} 24. f3 {[%clk 0:02:33]}  f5 {[%clk 0:00:28]} 25. Kf2 {[%clk 0:02:28]}  g5 {[%clk 0:00:28]} 26. Be2 {[%clk 0:02:12]}  Nb6 {[%clk 0:00:23]} 27. b3 {[%clk 0:02:10]}  Kd6 {[%clk 0:00:22]} 28. Rd1 {[%clk 0:02:03]}  Ke5 {[%clk 0:00:22]} 29. Rc1 {[%clk 0:01:59]}  Kd6 {[%clk 0:00:22]} 30. g3 {[%clk 0:01:59]}  h5 {[%clk 0:00:18]} 31. Bd3 {[%clk 0:01:54]}  Ke5 {[%clk 0:00:17]} 32. f4+ {[%clk 0:01:48]}  Kf6 {[%clk 0:00:17]} 33. h4 {[%clk 0:01:37]}  gxh4 {[%clk 0:00:17]} 34. gxh4 {[%clk 0:01:37]}  Rg7 {[%clk 0:00:14]} 35. Bf1 {[%clk 0:01:37]}  Rc7 {[%clk 0:00:14]} 36. Be2 {[%clk 0:01:37]}  Rg7 {[%clk 0:00:11]} 37. Bf1 {[%clk 0:01:15]}  Rc7 {[%clk 0:00:10]} 38. Rc3 {[%clk 0:01:14]}  Nd7 {[%clk 0:00:08]} 39. Be2 {[%clk 0:01:14]}  Kg6 {[%clk 0:00:08]} 40. Rc1 {[%clk 0:01:06]}  Nf6 {[%clk 0:00:08]} 41. Rg1+ {[%clk 0:01:01]}  Ng4+ {[%clk 0:00:08]} 42. Ke1 {[%clk 0:00:53]}  Kf6 {[%clk 0:00:09]} 43. Bxg4 {[%clk 0:00:47]}  fxg4 {[%clk 0:00:09]} 44. Kf2 {[%clk 0:00:48]}  Kf5 {[%clk 0:00:08]} 45. Rc1 {[%clk 0:00:44]}  e5 {[%clk 0:00:08]} 46. fxe5 {[%clk 0:00:43]}  Kxe5 {[%clk 0:00:09]} 47. Nc4+ {[%clk 0:00:43]}  Bxc4 {[%clk 0:00:07]} 48. Rxc4 {[%clk 0:00:43]}  Rf7+ {[%clk 0:00:07]} 49. Kg2 {[%clk 0:00:44]}  Kd5 {[%clk 0:00:07]} 50. e4+ {[%clk 0:00:44]}  Kd6 {[%clk 0:00:06]} 51. b4 {[%clk 0:00:38]}  cxb4 {[%clk 0:00:06]} 52. Rxb4 {[%clk 0:00:39]}  Ke5 {[%clk 0:00:05]} 53. Ra4 {[%clk 0:00:37]}  Kf4 {[%clk 0:00:03]} 54. Ra5 {[%clk 0:00:21]}  Kxe4 {[%clk 0:00:02]} 55. Rxh5 {[%clk 0:00:22]}  Rb7 {[%clk 0:00:02]} 56. Ra5 {[%clk 0:00:22]}  Kf4 {[%clk 0:00:01]} 57. Ra4+ {[%clk 0:00:21]}  Kf5 {[%clk 0:00:00]} 58. Kg3 {[%clk 0:00:22]} 1-0


[Site "https://www.chess.com"]

[Event "Titled Tuesday Blitz August 15 Late 2023"]
[White "Rustemov, Alexander"]
[Black "RrainlessBobot"]
[WhiteFideId "4119002"]
[WhiteElo "2760"]
[BlackElo "2564"]
[Result "0-1"]
[Round "11"]
[TimeControl "180+1"]
[Date "2023.08.15"]
[WhiteClock "0:00:27"]
[BlackClock "0:00:27"]
[Board "23"]

1. d4 {[%clk 0:03:00]}  d5 {[%clk 0:03:00]} 2. c4 {[%clk 0:03:00]}  e5 {[%clk 0:03:00]} 3. dxe5 {[%clk 0:02:58]}  Ne7 {[%clk 0:03:00]} 4. Nf3 {[%clk 0:02:55]}  Nbc6 {[%clk 0:03:00]} 5. a3 {[%clk 0:02:50]}  Bg4 {[%clk 0:02:44]} 6. Nbd2 {[%clk 0:02:43]}  dxc4 {[%clk 0:02:24]} 7. Qa4 {[%clk 0:02:40]}  Bxf3 {[%clk 0:01:43]} 8. Nxf3 {[%clk 0:02:38]}  Qd5 {[%clk 0:01:43]} 9. g3 {[%clk 0:02:27]}  b5 {[%clk 0:01:41]} 10. Qc2 {[%clk 0:02:26]}  Nd4 {[%clk 0:01:36]} 11. Qd1 {[%clk 0:02:16]}  Nxf3+ {[%clk 0:01:30]} 12. exf3 {[%clk 0:02:16]}  Qxe5+ {[%clk 0:01:14]} 13. Be2 {[%clk 0:02:15]}  Rd8 {[%clk 0:01:14]} 14. Qc2 {[%clk 0:02:15]}  Nf5 {[%clk 0:01:11]} 15. f4 {[%clk 0:02:07]}  Nd4 {[%clk 0:01:10]} 16. Qxc4 {[%clk 0:01:41]}  Qe4 {[%clk 0:00:44]} 17. f3 {[%clk 0:01:29]}  Nxf3+ {[%clk 0:00:42]} 18. Kf2 {[%clk 0:01:29]}  bxc4 {[%clk 0:00:42]} 19. Bxf3 {[%clk 0:01:27]}  Bc5+ {[%clk 0:00:41]} 20. Kg2 {[%clk 0:01:26]}  Qc2+ {[%clk 0:00:41]} 21. Kh3 {[%clk 0:01:26]}  O-O {[%clk 0:00:40]} 22. Rf1 {[%clk 0:00:46]}  Qd3 {[%clk 0:00:39]} 23. Kg2 {[%clk 0:00:45]}  Rfe8 {[%clk 0:00:38]} 24. g4 {[%clk 0:00:43]}  Re2+ {[%clk 0:00:38]} 25. Kg3 {[%clk 0:00:43]}  Rxh2 {[%clk 0:00:26]} 26. Rd1 {[%clk 0:00:27]}  Rh3+ {[%clk 0:00:27]} 0-1


[Site "https://www.chess.com"]